fUSD/lending_fUSD_20250524
["ID","MTS","AMOUNT","RATE_DAILY","PERIOD"]
[362265828,1748129441948,-420.0,0.00019315,2]
[362265829,1748129441957,-420.0,0.00019315,2]
[362265830,1748129441967,-1228.51,0.00019315,2]
[362265831,1748129441977,-696.33,0.00019315,2]
[362265832,1748129441986,-715.94,0.00019315,2]
[362265833,1748129441996,-420.0,0.00019315,2]
[362265834,1748129442006,-1306.55,0.00019315,2]
[362265835,1748129442015,-2409.8,0.00019315,2]
[362265836,1748129442025,-420.0,0.00019315,2]
[362265837,1748129442034,-1586.35,0.00019315,2]
[362265838,1748129442043,-420.0,0.00019315,2]
[362265839,1748129442052,-196.0,0.00019317,2]
[362265840,1748129442062,-530.33,0.00019342,2]
[362265841,1748129442072,-420.0,0.00019342,2]
[362265842,1748129442084,-31400.36,0.00019342,2]
[362265843,1748129442094,-420.0,0.00019342,2]
[362265844,1748129442104,-420.0,0.00019342,2]
[362265845,1748129442114,-420.0,0.00019342,2]
[362265846,1748129442123,-420.0,0.00019342,2]
[362265847,1748129442134,-420.0,0.00019342,2]
[362265848,1748129442145,-873.19,0.00019342,2]
[362265849,1748129442156,-420.0,0.00019342,2]
[362265850,1748129442166,-979.2,0.00019342,2]
[362265851,1748129442175,-422.96,0.00019342,2]
[362265852,1748129442184,-420.0,0.00019342,2]
[362265853,1748129442194,-550.41,0.00019342,2]
[362265854,1748129442203,-420.0,0.00019342,2]
[362265855,1748129442213,-565.87,0.00019342,2]
[362265856,1748129442224,-484.49,0.00019342,2]
[362265857,1748129442234,-420.0,0.00019342,2]
[362265858,1748129442243,-2495.14,0.00019342,2]
[362265859,1748129442253,-420.0,0.00019342,2]
[362265860,1748129442262,-1509.89,0.00019342,2]
[362265861,1748129442272,-383.14,0.00019342,2]
[362265862,1748129442281,-420.0,0.00019342,2]
[362265863,1748129442291,-813.08,0.00019342,2]
[362265864,1748129442300,-1005.79,0.00019342,2]
[362265865,1748129442310,-420.0,0.00019342,2]
[362265866,1748129442320,-420.0,0.00019342,2]
[362265867,1748129442329,-420.0,0.00019342,2]
[362265868,1748129442339,-1228.51,0.00019342,2]
[362265869,1748129442348,-696.33,0.00019342,2]
[362265870,1748129442357,-715.94,0.00019342,2]
[362265871,1748129442367,-420.0,0.00019342,2]
[362265872,1748129442377,-1306.55,0.00019342,2]
[362265873,1748129442387,-2409.8,0.00019342,2]
[362265874,1748129442396,-420.0,0.00019342,2]
[362265875,1748129442405,-1586.35,0.00019342,2]
[362265876,1748129442414,-420.0,0.00019342,2]
[362265877,1748129442424,-2696.94239321,0.00019345,2]
[362265878,1748129442433,-420.0,0.00019369,2]
[362265879,1748129442443,-31400.36,0.00019369,2]
[362265880,1748129442452,-420.0,0.00019369,2]
[362265881,1748129442461,-420.0,0.00019369,2]
[362265882,1748129442470,-420.0,0.00019369,2]
[362265883,1748129442480,-420.0,0.00019369,2]
[362265884,1748129442490,-212.4,0.00019369,2]
[362265885,1748129442499,-873.19,0.00019369,2]
[362265886,1748129442508,-510.51,0.00019369,2]
[362265887,1748129442518,-979.2,0.00019369,2]
[362265888,1748129442527,-422.96,0.00019369,2]
[362265889,1748129442536,-420.0,0.00019369,2]
[362265890,1748129442545,-438.46,0.00019369,2]
[362265891,1748129442554,-484.49,0.00019369,2]
[362265892,1748129442563,-420.0,0.00019369,2]
[362265893,1748129442572,-2495.14,0.00019369,2]
[362265894,1748129442582,-420.0,0.00019369,2]
[362265895,1748129442591,-1509.89,0.00019369,2]
[362265896,1748129442600,-420.0,0.00019369,2]
[362265897,1748129442609,-813.08,0.00019369,2]
[362265898,1748129442619,-1005.79,0.00019369,2]
[362265899,1748129442628,-420.0,0.00019369,2]
[362265900,1748129442639,-420.0,0.00019369,2]
[362265901,1748129442649,-420.0,0.00019369,2]
[362265905,1748129442659,-1228.51,0.00019369,2]
[362265906,1748129442670,-696.33,0.00019369,2]
[362265907,1748129442680,-715.94,0.00019369,2]
[362265908,1748129442689,-420.0,0.00019369,2]
[362265909,1748129442699,-1306.55,0.00019369,2]
[362265910,1748129442708,-2409.8,0.00019369,2]
[362265911,1748129442717,-420.0,0.00019369,2]
[362265912,1748129442726,-1586.35,0.00019369,2]
[362265913,1748129442735,-420.0,0.00019369,2]
[362265914,1748129442744,-500.0,0.00019373,2]
[362265915,1748129442756,-500.0,0.00019373,2]
[362265916,1748129442771,-462.23,0.00019397,2]
[362265917,1748129442780,-31400.36,0.00019397,2]
[362265918,1748129442790,-420.0,0.00019397,2]
[362265919,1748129442800,-420.0,0.00019397,2]
[362265920,1748129442809,-420.0,0.00019397,2]
[362265921,1748129442818,-420.0,0.00019397,2]
[362265922,1748129442827,-873.19,0.00019397,2]
[362265923,1748129442837,-979.2,0.00019397,2]
[362265924,1748129442846,-422.96,0.00019397,2]
[362265925,1748129442855,-420.0,0.00019397,2]
[362265926,1748129442864,-484.49,0.00019397,2]
[362265927,1748129442874,-420.0,0.00019397,2]
[362265928,1748129442883,-2495.14,0.00019397,2]
[362265929,1748129442897,-420.0,0.00019397,2]
[362265930,1748129442908,-1509.89,0.00019397,2]
[362265931,1748129442917,-420.0,0.00019397,2]
[362265932,1748129442926,-813.08,0.00019397,2]
[362265933,1748129442937,-1005.79,0.00019397,2]
[362265934,1748129442946,-420.0,0.00019397,2]
[362265935,1748129442955,-420.0,0.00019397,2]
[362265936,1748129442965,-420.0,0.00019397,2]
[362265937,1748129442975,-1228.51,0.00019397,2]
[362265938,1748129442984,-696.33,0.00019397,2]
[362265939,1748129442993,-715.94,0.00019397,2]
[362265940,1748129443003,-420.0,0.00019397,2]
[362265941,1748129443012,-1306.55,0.00019397,2]
[362265942,1748129443021,-2409.8,0.00019397,2]
[362265943,1748129443031,-420.0,0.00019397,2]
[362265944,1748129443040,-1586.35,0.00019397,2]
[362265945,1748129443052,-420.0,0.00019397,2]
[362265946,1748129443063,-31400.36,0.00019424,2]
[362265947,1748129443073,-420.0,0.00019424,2]
[362265948,1748129443083,-420.0,0.00019424,2]
[362265949,1748129443094,-420.0,0.00019424,2]
[362265950,1748129443106,-420.0,0.00019424,2]
[362265951,1748129443117,-873.19,0.00019424,2]
[362265952,1748129443127,-979.2,0.00019424,2]
[362265953,1748129443136,-422.96,0.00019424,2]
[362265961,1748129443333,-420.0,0.00019424,2]
[362265962,1748129443343,-484.49,0.00019424,2]
[362265963,1748129443352,-420.0,0.00019424,2]
[362265964,1748129443363,-2495.14,0.00019424,2]
[362265965,1748129443372,-420.0,0.00019424,2]
[362265966,1748129443384,-1509.89,0.00019424,2]
[362265967,1748129443394,-420.0,0.00019424,2]
[362265968,1748129443404,-813.08,0.00019424,2]
[362265969,1748129443414,-1005.79,0.00019424,2]
[362265970,1748129443424,-420.0,0.00019424,2]
[362265971,1748129443434,-420.0,0.00019424,2]
[362265972,1748129443444,-420.0,0.00019424,2]
[362265973,1748129443453,-1228.51,0.00019424,2]
[362265974,1748129443462,-696.33,0.00019424,2]
[362265975,1748129443473,-715.94,0.00019424,2]
[362265976,1748129443482,-420.0,0.00019424,2]
[362265977,1748129443492,-1306.55,0.00019424,2]
[362265978,1748129443501,-2409.8,0.00019424,2]
[362265979,1748129443511,-420.0,0.00019424,2]
[362265980,1748129443520,-1586.35,0.00019424,2]
[362265981,1748129443530,-420.0,0.00019424,2]
[362265982,1748129443539,-2696.94239321,0.00019425,2]
[362265983,1748129443549,-31400.36,0.00019452,2]
[362265984,1748129443558,-420.0,0.00019452,2]
[362265985,1748129443567,-420.0,0.00019452,2]
[362265986,1748129443576,-420.0,0.00019452,2]
[362265987,1748129443586,-420.0,0.00019452,2]
[362265988,1748129443596,-873.19,0.00019452,2]
[362265989,1748129443605,-979.2,0.00019452,2]
[362265990,1748129443615,-422.96,0.00019452,2]
[362265991,1748129443624,-420.0,0.00019452,2]
[362265992,1748129443633,-484.49,0.00019452,2]
[362265993,1748129443642,-420.0,0.00019452,2]
[362265994,1748129443651,-2495.14,0.00019452,2]
[362265995,1748129443661,-420.0,0.00019452,2]
[362265996,1748129443670,-1509.89,0.00019452,2]
[362265997,1748129443679,-420.0,0.00019452,2]
[362265998,1748129443689,-813.08,0.00019452,2]
[362265999,1748129443699,-1005.79,0.00019452,2]
[362266000,1748129443708,-420.0,0.00019452,2]
[362266001,1748129443718,-420.0,0.00019452,2]
[362266002,1748129443728,-420.0,0.00019452,2]
[362266003,1748129443737,-1228.51,0.00019452,2]
[362266004,1748129443746,-696.33,0.00019452,2]
[362266005,1748129443756,-715.94,0.00019452,2]
[362266006,1748129443771,-420.0,0.00019452,2]
[362266007,1748129443782,-1306.55,0.00019452,2]
[362266008,1748129443793,-2409.8,0.00019452,2]
[362266009,1748129443803,-420.0,0.00019452,2]
[362266010,1748129443813,-1586.35,0.00019452,2]
[362266011,1748129443825,-411.33,0.00019452,2]
[362266012,1748129443835,-170.66988584,0.00019456,2]
[362266013,1748129443846,-500.0,0.00019473,2]
[362266014,1748129443857,-500.0,0.00019473,2]
[362266015,1748129443870,-500.0,0.00019478,2]
[362266016,1748129443880,-500.0,0.00019478,2]
[362266017,1748129443893,-31400.36,0.00019479,2]
[362266018,1748129443903,-420.0,0.00019479,2]
[362266019,1748129443912,-420.0,0.00019479,2]
[362266020,1748129443922,-420.0,0.00019479,2]
[362266021,1748129443934,-420.0,0.00019479,2]
[362266022,1748129443945,-873.19,0.00019479,2]
[362266023,1748129443958,-979.2,0.00019479,2]
[362266024,1748129443970,-422.96,0.00019479,2]
[362266025,1748129443979,-420.0,0.00019479,2]
[362266026,1748129443988,-484.49,0.00019479,2]
[362266027,1748129443998,-235.87,0.00019479,2]
[362266028,1748129444007,-2495.14,0.00019479,2]
[362266029,1748129444016,-420.0,0.00019479,2]
[362266030,1748129444025,-1509.89,0.00019479,2]
[362266031,1748129444033,-420.0,0.00019479,2]
[362266032,1748129444042,-813.08,0.00019479,2]
[362266033,1748129444052,-1005.79,0.00019479,2]
[362266034,1748129444061,-420.0,0.00019479,2]
[362266035,1748129444070,-420.0,0.00019479,2]
[362266036,1748129444079,-420.0,0.00019479,2]
[362266037,1748129444088,-1228.51,0.00019479,2]
[362266038,1748129444098,-696.33,0.00019479,2]
[362266039,1748129444109,-715.94,0.00019479,2]
[362266040,1748129444118,-420.0,0.00019479,2]
[362266041,1748129444129,-1306.55,0.00019479,2]
[362266042,1748129444140,-2409.8,0.00019479,2]
[362266043,1748129444152,-420.0,0.00019479,2]
[362266044,1748129444163,-1586.35,0.00019479,2]
[362266045,1748129444175,-2696.94239321,0.00019504,2]
[362266046,1748129444185,-31400.36,0.00019506,2]
[362266047,1748129444194,-420.0,0.00019506,2]
[362266048,1748129444203,-420.0,0.00019506,2]
[362266049,1748129444212,-223.58,0.00019506,2]
[362266050,1748129444222,-420.0,0.00019506,2]
[362266051,1748129444231,-873.19,0.00019506,2]
[362266052,1748129444242,-979.2,0.00019506,2]
[362266053,1748129444251,-422.96,0.00019506,2]
[362266054,1748129444263,-420.0,0.00019506,2]
[362266055,1748129444273,-484.49,0.00019506,2]
[362266056,1748129444284,-2495.14,0.00019506,2]
[362266057,1748129444293,-420.0,0.00019506,2]
[362266058,1748129444303,-1509.89,0.00019506,2]
[362266059,1748129444313,-420.0,0.00019506,2]
[362266060,1748129444322,-813.08,0.00019506,2]
[362266061,1748129444331,-1005.79,0.00019506,2]
[362266062,1748129444340,-420.0,0.00019506,2]
[362266063,1748129444349,-420.0,0.00019506,2]
[362266064,1748129444358,-336.74,0.00019506,2]
[362266065,1748129444367,-1228.51,0.00019506,2]
[362266066,1748129444377,-696.33,0.00019506,2]
[362266067,1748129444386,-715.94,0.00019506,2]
[362266068,1748129444395,-420.0,0.00019506,2]
[362266069,1748129444406,-1306.55,0.00019506,2]
[362266070,1748129444415,-2409.8,0.00019506,2]
[362266071,1748129444425,-420.0,0.00019506,2]
[362266072,1748129444434,-1586.35,0.00019506,2]
[362266073,1748129444444,-150.0,0.00019516,4]
[362266074,1748129444454,-31400.36,0.00019534,2]
[362266075,1748129444463,-420.0,0.00019534,2]
[362266076,1748129444474,-420.0,0.00019534,2]
[362266077,1748129444484,-420.0,0.00019534,2]
[362266078,1748129444494,-873.19,0.00019534,2]
[362266079,1748129444503,-979.2,0.00019534,2]
[362266080,1748129444512,-422.96,0.00019534,2]
[362266081,1748129444522,-420.0,0.00019534,2]
[362266082,1748129444532,-484.49,0.00019534,2]
[362266083,1748129444542,-2495.14,0.00019534,2]
[362266084,1748129444552,-420.0,0.00019534,2]
[362266085,1748129444561,-1509.89,0.00019534,2]
[362266086,1748129444570,-420.0,0.00019534,2]
[362266087,1748129444581,-813.08,0.00019534,2]
[362266088,1748129444590,-1005.79,0.00019534,2]
[362266089,1748129444600,-420.0,0.00019534,2]
[362266090,1748129444610,-420.0,0.00019534,2]
[362266091,1748129444619,-1228.51,0.00019534,2]
[362266092,1748129444628,-696.33,0.00019534,2]
[362266093,1748129444638,-715.94,0.00019534,2]
[362266094,1748129444647,-226.83,0.00019534,2]
[362266095,1748129444656,-1306.55,0.00019534,2]
[362266096,1748129444666,-2409.8,0.00019534,2]
[362266097,1748129444675,-420.0,0.00019534,2]
[362266098,1748129444685,-1586.35,0.00019534,2]
[362266099,1748129444694,-203.0,0.00019551,2]
[362266100,1748129444704,-31400.36,0.00019561,2]
[362266101,1748129444713,-420.0,0.00019561,2]
[362266102,1748129444722,-387.14,0.00019561,2]
[362266103,1748129444732,-420.0,0.00019561,2]
[362266104,1748129444741,-873.19,0.00019561,2]
[362266105,1748129444751,-979.2,0.00019561,2]
[362266106,1748129444761,-422.96,0.00019561,2]
[362266107,1748129444771,-420.0,0.00019561,2]
[362266108,1748129444781,-484.49,0.00019561,2]
[362266109,1748129444790,-2495.14,0.00019561,2]
[362266110,1748129444799,-420.0,0.00019561,2]
[362266111,1748129444810,-1509.89,0.00019561,2]
[362266112,1748129444820,-420.0,0.00019561,2]
[362266113,1748129444832,-813.08,0.00019561,2]
[362266114,1748129444841,-1005.79,0.00019561,2]
[362266115,1748129444850,-206.96,0.00019561,2]
[362266116,1748129444861,-420.0,0.00019561,2]
[362266117,1748129444872,-1228.51,0.00019561,2]
[362266118,1748129444882,-696.33,0.00019561,2]
[362266119,1748129444898,-715.94,0.00019561,2]
[362266120,1748129444909,-1306.55,0.00019561,2]
[362266121,1748129444918,-2409.8,0.00019561,2]
[362266122,1748129444928,-420.0,0.00019561,2]
[362266123,1748129444939,-1586.35,0.00019561,2]
[362266124,1748129444948,-235.7926232,0.00019571,2]
[362266125,1748129444959,-2696.94239321,0.00019583,2]
[362266126,1748129444972,-31400.36,0.00019589,2]
[362266127,1748129444982,-420.0,0.00019589,2]
[362266128,1748129444991,-420.0,0.00019589,2]
[362266129,1748129445002,-873.19,0.00019589,2]
[362266130,1748129445012,-979.2,0.00019589,2]
[362266131,1748129445021,-422.96,0.00019589,2]
[362266132,1748129445031,-420.0,0.00019589,2]
[362266133,1748129445040,-484.49,0.00019589,2]
[362266134,1748129445053,-2495.14,0.00019589,2]
[362266135,1748129445064,-420.0,0.00019589,2]
[362266136,1748129445074,-1509.89,0.00019589,2]
[362266137,1748129445084,-275.97,0.00019589,2]
[362266138,1748129445093,-813.08,0.00019589,2]
[362266139,1748129445102,-1005.79,0.00019589,2]
[362266140,1748129445112,-420.0,0.00019589,2]
[362266141,1748129445122,-1228.51,0.00019589,2]
[362266142,1748129445132,-696.33,0.00019589,2]
[362266143,1748129445141,-715.94,0.00019589,2]
[362266144,1748129445151,-1306.55,0.00019589,2]
[362266145,1748129445161,-2409.8,0.00019589,2]
[362266146,1748129445171,-420.0,0.00019589,2]
[362266147,1748129445180,-1586.35,0.00019589,2]
[362266148,1748129445190,-806.0,0.00019589,2]
[362266149,1748129445200,-806.0,0.00019589,2]
[362266150,1748129445211,-806.0,0.00019589,2]
[362266151,1748129445220,-462.827106,0.00019599,2]
[362266152,1748129445231,-170.66988584,0.00019604,2]
[362266153,1748129445241,-31400.36,0.00019616,2]
[362266154,1748129445251,-420.0,0.00019616,2]
[362266155,1748129445261,-420.0,0.00019616,2]
[362266156,1748129445271,-873.19,0.00019616,2]
[362266157,1748129445280,-979.2,0.00019616,2]
[362266158,1748129445290,-422.96,0.00019616,2]
[362266159,1748129445299,-420.0,0.00019616,2]
[362266160,1748129445309,-484.49,0.00019616,2]
[362266161,1748129445319,-2495.14,0.00019616,2]
[362266162,1748129445329,-420.0,0.00019616,2]
[362266163,1748129445338,-1509.89,0.00019616,2]
[362266164,1748129445348,-813.08,0.00019616,2]
[362266165,1748129445357,-1005.79,0.00019616,2]
[362266166,1748129445367,-420.0,0.00019616,2]
[362266167,1748129445377,-1228.51,0.00019616,2]
[362266168,1748129445388,-696.33,0.00019616,2]
[362266169,1748129445401,-715.94,0.00019616,2]
[362266170,1748129445414,-1306.55,0.00019616,2]
[362266171,1748129445424,-2409.8,0.00019616,2]
[362266172,1748129445434,-164.93,0.00019616,2]
[362266173,1748129445444,-1586.35,0.00019616,2]
[362266174,1748129445454,-235.79262319,0.00019626,2]
[362266175,1748129445463,-168.58121526,0.00019626,2]
[362266176,1748129445473,-31400.36,0.00019643,2]
[362266177,1748129445482,-420.0,0.00019643,2]
[362266178,1748129445492,-420.0,0.00019643,2]
[362266179,1748129445502,-873.19,0.00019643,2]
[362266180,1748129445512,-979.2,0.00019643,2]
[362266181,1748129445522,-422.96,0.00019643,2]
[362266182,1748129445532,-515.93,0.00019643,2]
[362266183,1748129445542,-484.49,0.00019643,2]
[362266184,1748129445552,-2495.14,0.00019643,2]
[362266185,1748129445562,-420.0,0.00019643,2]
[362266186,1748129445571,-1509.89,0.00019643,2]
[362266188,1748129445581,-813.08,0.00019643,2]
[362266190,1748129445591,-1005.79,0.00019643,2]
[362266191,1748129445601,-420.0,0.00019643,2]
[362266192,1748129445610,-1228.51,0.00019643,2]
[362266193,1748129445620,-696.33,0.00019643,2]
[362266194,1748129445630,-715.94,0.00019643,2]
[362266195,1748129445639,-1306.55,0.00019643,2]
[362266196,1748129445649,-2409.8,0.00019643,2]
[362266197,1748129445658,-1586.35,0.00019643,2]
[362266198,1748129445668,-2696.94239321,0.00019662,2]
[362266199,1748129445678,-500.0,0.0001967,2]
[362266200,1748129445688,-31400.36,0.00019671,2]
[362266201,1748129445698,-194.56,0.00019671,2]
[362266202,1748129445707,-420.0,0.00019671,2]
[362266203,1748129445717,-873.19,0.00019671,2]
[362266204,1748129445780,-979.2,0.00019671,2]
[362266205,1748129445789,-422.96,0.00019671,2]
[362266206,1748129445799,-484.49,0.00019671,2]
[362266207,1748129445810,-2495.14,0.00019671,2]
[362266208,1748129445819,-252.53,0.00019671,2]
[362266209,1748129445829,-1509.89,0.00019671,2]
[362266210,1748129445838,-813.08,0.00019671,2]
[362266211,1748129445847,-1005.79,0.00019671,2]
[362266212,1748129445857,-420.0,0.00019671,2]
[362266213,1748129445867,-1228.51,0.00019671,2]
[362266214,1748129445876,-696.33,0.00019671,2]
[362266215,1748129445888,-715.94,0.00019671,2]
[362266216,1748129445899,-1306.55,0.00019671,2]
[362266217,1748129445908,-2409.8,0.00019671,2]
[362266218,1748129445917,-1586.35,0.00019671,2]
[362266219,1748129445927,-235.79262319,0.00019681,2]
[362266220,1748129445936,-424.58205481,0.00019688,2]
[362266221,1748129445946,-150.0,0.00019697,2]
[362266222,1748129445955,-31400.36,0.00019698,2]
[362266223,1748129445967,-415.52,0.00019698,2]
[362266224,1748129445979,-873.19,0.00019698,2]
[362266225,1748129445988,-979.2,0.00019698,2]
[362266226,1748129445998,-422.96,0.00019698,2]
[362266227,1748129446007,-484.49,0.00019698,2]
[362266228,1748129446017,-2495.14,0.00019698,2]
[362266229,1748129446027,-1509.89,0.00019698,2]
[362266230,1748129446036,-813.08,0.00019698,2]
[362266231,1748129446045,-1005.79,0.00019698,2]
[362266232,1748129446055,-420.0,0.00019698,2]
[362266233,1748129446064,-1228.51,0.00019698,2]
[362266234,1748129446074,-696.33,0.00019698,2]
[362266235,1748129446083,-715.94,0.00019698,2]
[362266236,1748129446092,-1306.55,0.00019698,2]
[362266237,1748129446102,-2409.8,0.00019698,2]
[362266238,1748129446111,-1586.35,0.00019698,2]
[362266239,1748129446121,-1002.87746407,0.00019723,2]
[362266240,1748129446131,-31400.36,0.00019726,2]
[362266241,1748129446142,-873.19,0.00019726,2]
[362266242,1748129446151,-979.2,0.00019726,2]
[362266243,1748129446162,-422.96,0.00019726,2]
[362266244,1748129446172,-484.49,0.00019726,2]
[362266245,1748129446181,-2495.14,0.00019726,2]
[362266246,1748129446190,-1509.89,0.00019726,2]
[362266247,1748129446200,-813.08,0.00019726,2]
[362266248,1748129446210,-1005.79,0.00019726,2]
[362266249,1748129446220,-420.0,0.00019726,2]
[362266250,1748129446230,-1228.51,0.00019726,2]
[362266251,1748129446239,-696.33,0.00019726,2]
[362266252,1748129446249,-715.94,0.00019726,2]
[362266253,1748129446258,-1306.55,0.00019726,2]
[362266254,1748129446268,-2409.8,0.00019726,2]
[362266255,1748129446278,-1586.35,0.00019726,2]
[362266256,1748129446287,-235.79262319,0.00019736,2]
[362266257,1748129446298,-2696.94239321,0.00019742,2]
[362266258,1748129446307,-2000.0,0.00019748,2]
[362266259,1748129446317,-170.66988584,0.00019752,2]
[362266260,1748129446327,-31400.36,0.00019753,2]
[362266261,1748129446337,-873.19,0.00019753,2]
[362266262,1748129446346,-979.2,0.00019753,2]
[362266263,1748129446356,-422.96,0.00019753,2]
[362266264,1748129446366,-484.49,0.00019753,2]
[362266265,1748129446375,-2495.14,0.00019753,2]
[362266266,1748129446385,-1509.89,0.00019753,2]
[362266267,1748129446394,-813.08,0.00019753,2]
[362266268,1748129446404,-1005.79,0.00019753,2]
[362266269,1748129446414,-420.0,0.00019753,2]
[362266270,1748129446423,-1228.51,0.00019753,2]
[362266271,1748129446433,-696.33,0.00019753,2]
[362266272,1748129446442,-715.94,0.00019753,2]
[362266273,1748129446451,-1306.55,0.00019753,2]
[362266274,1748129446460,-2409.8,0.00019753,2]
[362266275,1748129446470,-1453.09,0.0001978,2]
[362266276,1748129446480,-31400.36,0.0001978,2]
[362266277,1748129446490,-873.19,0.0001978,2]
[362266278,1748129446500,-979.2,0.0001978,2]
[362266279,1748129446509,-422.96,0.0001978,2]
[362266280,1748129446519,-484.49,0.0001978,2]
[362266281,1748129446528,-2495.14,0.0001978,2]
[362266282,1748129446538,-1509.89,0.0001978,2]
[362266283,1748129446548,-813.08,0.0001978,2]
[362266284,1748129446557,-1005.79,0.0001978,2]
[362266285,1748129446567,-276.04,0.0001978,2]
[362266286,1748129446577,-1228.51,0.0001978,2]
[362266287,1748129446586,-696.33,0.0001978,2]
[362266288,1748129446595,-715.94,0.0001978,2]
[362266289,1748129446604,-1306.55,0.0001978,2]
[362266290,1748129446613,-2409.8,0.0001978,2]
[362266291,1748129446623,-235.79262319,0.0001979,2]
[362266292,1748129446632,-5037.62388957,0.000198,2]
[362266293,1748129446642,-31400.57556565,0.00019808,2]
[362266294,1748129446651,-873.39,0.00019808,2]
[362266295,1748129446660,-979.4208273,0.00019808,2]
[362266296,1748129446670,-423.17,0.00019808,2]
[362266297,1748129446679,-484.51,0.00019808,2]
[362266298,1748129446689,-2495.26096604,0.00019808,2]
[362266299,1748129446699,-1509.92,0.00019808,2]
[362266300,1748129446710,-813.24,0.00019808,2]
[362266301,1748129446720,-1005.79,0.00019808,2]
[362266302,1748129446729,-1228.54,0.00019808,2]
[362266303,1748129446739,-696.34,0.00019808,2]
[362266304,1748129446749,-716.08,0.00019808,2]
[362266305,1748129446758,-1306.63,0.00019808,2]
[362266306,1748129446767,-2409.97,0.00019808,2]
[362266307,1748129446777,-1002.87746407,0.00019812,2]
[362266308,1748129446787,-1000.0,0.00019821,2]
[362266309,1748129446796,-2696.94239321,0.00019821,2]
[362266310,1748129446806,-978.847,0.00019822,2]
[362266311,1748129446817,-154.0,0.00019822,2]
[362266312,1748129446826,-200.0,0.0001984,2]
[362266313,1748129446836,-235.79262319,0.00019845,2]
[362266314,1748129446846,-193.89186343,0.00019891,2]
[362266315,1748129446856,-235.79262319,0.000199,2]
[362266316,1748129446866,-1002.87746407,0.000199,2]
[362266317,1748129446875,-486.40533377,0.000199,2]
[362266318,1748129446884,-486.40533375,0.000199,2]
[362266319,1748129446899,-486.40533375,0.000199,2]
[362266320,1748129446908,-486.40533375,0.000199,2]
[362266321,1748129446918,-486.40533375,0.000199,2]
[362266322,1748129446927,-486.40533375,0.000199,2]
[362266323,1748129446939,-486.40533375,0.000199,2]
[362266324,1748129446948,-486.40533375,0.000199,2]
[362266325,1748129446958,-2696.94239321,0.000199,2]
[362266326,1748129446968,-486.40533375,0.000199,2]
[362266327,1748129446979,-486.40533375,0.000199,2]
[362266328,1748129446989,-196.93143404,0.000199,2]
[362266329,1748129446999,-1062.62202568,0.000199,2]
[362266330,1748129447009,-486.40533375,0.000199,2]
[362266331,1748129447019,-486.40533375,0.000199,2]
[362266332,1748129447029,-486.40533375,0.000199,2]
[362266333,1748129447039,-486.40533375,0.000199,2]
[362266334,1748129447048,-170.66988584,0.000199,2]
[362266335,1748129447058,-486.40533375,0.000199,2]
[362266336,1748129447067,-486.40533375,0.000199,2]
[362266337,1748129447077,-486.40533375,0.000199,2]
[362266338,1748129447087,-486.40533375,0.000199,2]
[362266339,1748129447096,-486.40533375,0.000199,2]